[Event "GMT Biel Chess Festival rapid"]
[Site "Biel/Bienne, Switzerland"]
[Date "2020.07.19"]
[Round "2.1"]
[White "Édouard, Romain"]
[Black "Studer, Noël"]
[Result "1-0"]
[WhiteElo "2654"]
[BlackElo "2437"]
[PlyCount "99"]
[EventDate "2020.??.??"]
[EventType "rapid"]
[TimeControl "15+5"]
[WhiteClock "0:00:07"]
[BlackClock "0:00:09"]

1. c4 {[%emt 0:00:00]} e5 {[%emt 0:00:00]} 2. d3 {[%emt 0:00:00]} Nf6 {[%emt 0:
00:00]} 3. Nf3 {[%emt 0:00:00]} Nc6 {[%emt 0:00:00]} 4. Nc3 {[%emt 0:00:00]} d5
{[%emt 0:00:00]} 5. cxd5 {[%emt 0:00:00]} Nxd5 {[%emt 0:00:00]} 6. e4 {[%emt 0:
00:00]} Nxc3 {[%emt 0:00:00]} 7. bxc3 {[%emt 0:00:00]} Bc5 {[%emt 0:00:00]} 8.
Be2 {[%emt 0:00:00]} O-O {[%emt 0:00:00]} 9. Be3 {[%emt 0:00:00]} Qe7 {[%emt 0:
00:00]} 10. O-O {[%emt 0:00:00]} Bb6 {[%emt 0:00:00]} 11. h3 {[%emt 0:00:00]}
h6 {[%emt 0:00:00]} 12. Re1 {[%emt 0:00:00]} Bxe3 {[%emt 0:00:00]} 13. fxe3 {
[%emt 0:00:00]} Qc5 {[%emt 0:00:00]} 14. Qd2 {[%emt 0:00:00]} f5 {[%emt 0:00:
00]} 15. d4 {[%emt 0:00:00]} Qe7 {[%emt 0:00:00]} 16. Bd3 {[%emt 0:00:00]} f4 {
[%emt 0:00:00]} 17. Bc4+ {[%emt 0:00:00]} Kh7 {[%emt 0:00:00]} 18. Bd5 {
[%emt 0:00:00]} fxe3 {[%emt 0:00:00]} 19. Rxe3 {[%emt 0:00:00]} exd4 {[%emt 0:
00:00]} 20. cxd4 {[%emt 0:00:00]} Nd8 {[%emt 0:00:00]} 21. Bb3 {[%emt 0:00:00]}
Ne6 {[%emt 0:00:00]} 22. e5 {[%emt 0:00:00]} Nf4 {[%emt 0:00:02]} 23. e6 {
[%emt 0:00:00]} c6 {[%emt 0:00:05]} 24. Rae1 {[%emt 0:00:00]} Rf6 {[%emt 0:00:
16]} 25. Qc2+ {[%emt 0:00:00]} Kh8 {[%emt 0:00:17]} 26. Qc5 {[%emt 0:00:00]}
Qe8 {[%emt 0:00:21]} 27. e7 {[%emt 0:00:00]} Bxh3 {[%emt 0:00:29]} 28. Ne5 {
[%emt 0:00:00]} Be6 {[%emt 0:00:19]} 29. Rf3 {[%emt 0:00:16]} Bxb3 {[%emt 0:00:
36]} 30. axb3 {[%emt 0:00:02]} Ne6 {[%emt 0:00:11]} 31. Qd6 {[%emt 0:00:18]}
Nf4 {[%emt 0:00:05]} 32. Qd7 {[%emt 0:00:39]} Kg8 {[%emt 0:00:01]} 33. Qxb7 {
[%emt 0:00:27]} Rb8 {[%emt 0:00:10]} 34. Qxa7 {[%emt 0:00:02]} Ra8 {[%emt 0:00:
03]} 35. Qb7 {[%emt 0:00:39]} Ra2 {[%emt 0:00:03]} 36. Qd7 {[%emt 0:00:20]} Ra8
{[%emt 0:00:07]} 37. Qg4 {[%emt 0:00:23]} Nd5 {[%emt 0:00:02]} 38. Rxf6 {
[%emt 0:00:04]} Nxf6 {[%emt 0:00:02]} 39. Qe6+ {[%emt 0:00:02]} Kh7 {[%emt 0:
00:03]} 40. Nxc6 {[%emt 0:00:10]} Qg6 {[%emt 0:00:05]} 41. Ne5 {[%emt 0:00:09]}
Qg3 {[%emt 0:00:13]} 42. Qf5+ {[%emt 0:00:05]} Kg8 {[%emt 0:00:00]} 43. Qe6+ {
[%emt 0:00:03]} Kh7 {[%emt 0:00:01]} 44. Rf1 {[%emt 0:00:09]} Ra2 {[%emt 0:00:
15]} 45. Qf5+ {[%emt 0:00:04]} Kg8 {[%emt 0:00:06]} 46. Qc8+ {[%emt 0:00:04]}
Kh7 {[%emt 0:00:01]} 47. Qf5+ {[%emt 0:00:01]} Kg8 {[%emt 0:00:01]} 48. Qf3 {
[%emt 0:00:06]} Qh4 {[%emt 0:00:06]} 49. Qxf6 {[%emt 0:00:09]} Qxd4+ {[%emt 0:
00:13]} 50. Kh1 {[%emt 0:00:04]} 1-0

[Event "GMT Biel Chess Festival rapid"]
[Site "Biel/Bienne, Switzerland"]
[Date "2020.07.19"]
[Round "2.2"]
[White "Wojtaszek, Radoslaw"]
[Black "Anton Guijarro, David"]
[Result "1-0"]
[WhiteElo "2662"]
[BlackElo "2718"]
[PlyCount "97"]
[EventDate "2020.??.??"]
[EventType "rapid"]
[TimeControl "15+5"]
[WhiteClock "0:00:08"]
[BlackClock "0:00:24"]

1. d4 {[%emt 0:00:00]} d5 {[%emt 0:00:00]} 2. c4 {[%emt 0:00:00]} dxc4 {
[%emt 0:00:00]} 3. e4 {[%emt 0:00:00]} Nf6 {[%emt 0:00:00]} 4. e5 {[%emt 0:00:
00]} Nd5 {[%emt 0:00:00]} 5. Bxc4 {[%emt 0:00:00]} Bf5 {[%emt 0:00:00]} 6. Nf3
{[%emt 0:00:00]} e6 {[%emt 0:00:00]} 7. Nc3 {[%emt 0:00:00]} Nxc3 {[%emt 0:00:
00]} 8. bxc3 {[%emt 0:00:00]} Be7 {[%emt 0:00:00]} 9. Bd3 {[%emt 0:00:00]} Bxd3
{[%emt 0:00:00]} 10. Qxd3 {[%emt 0:00:00]} c5 {[%emt 0:00:00]} 11. Rb1 {
[%emt 0:00:00]} b6 {[%emt 0:00:00]} 12. O-O {[%emt 0:00:00]} Nc6 {[%emt 0:00:
00]} 13. Qe4 {[%emt 0:00:00]} Qd5 {[%emt 0:00:00]} 14. Qg4 {[%emt 0:00:00]} Kf8
{[%emt 0:00:00]} 15. Bg5 {[%emt 0:00:00]} cxd4 {[%emt 0:00:00]} 16. Bxe7+ {
[%emt 0:00:00]} Nxe7 {[%emt 0:00:00]} 17. cxd4 {[%emt 0:00:00]} h6 {[%emt 0:00:
00]} 18. Rb3 {[%emt 0:00:00]} Rc8 {[%emt 0:00:00]} 19. Ra3 {[%emt 0:00:00]} Rc7
{[%emt 0:00:00]} 20. h4 {[%emt 0:00:00]} Kg8 {[%emt 0:00:00]} 21. Qf4 {[%emt 0:
00:00]} Nc6 {[%emt 0:00:00]} 22. Rd1 {[%emt 0:00:00]} Kh7 {[%emt 0:00:00]} 23.
Nh2 {[%emt 0:00:00]} Rd8 {[%emt 0:00:29]} 24. Rad3 {[%emt 0:00:00]} Rcd7 {
[%emt 0:00:25]} 25. Kh1 {[%emt 0:00:35]} Kh8 {[%emt 0:00:20]} 26. Ng4 {[%emt 0:
00:18]} Kh7 {[%emt 0:00:30]} 27. Ne3 {[%emt 0:01:01]} Qb5 {[%emt 0:00:11]} 28.
Qe4+ {[%emt 0:00:10]} Kg8 {[%emt 0:00:05]} 29. d5 {[%emt 0:00:08]} exd5 {
[%emt 0:00:23]} 30. Nxd5 {[%emt 0:00:02]} Nb8 {[%emt 0:00:11]} 31. a4 {[%emt 0:
00:15]} Qc5 {[%emt 0:00:07]} 32. f4 {[%emt 0:00:04]} Kh8 {[%emt 0:00:06]} 33.
f5 {[%emt 0:00:01]} Qc6 {[%emt 0:00:03]} 34. e6 {[%emt 0:00:07]} fxe6 {[%emt 0:
00:05]} 35. fxe6 {[%emt 0:00:01]} Rd6 {[%emt 0:00:09]} 36. e7 {[%emt 0:00:01]}
Re8 {[%emt 0:00:03]} 37. Rf1 {[%emt 0:00:01]} Nd7 {[%emt 0:00:04]} 38. Rdf3 {
[%emt 0:00:08]} Nf6 {[%emt 0:00:07]} 39. Nxf6 {[%emt 0:00:08]} gxf6 {[%emt 0:
00:02]} 40. Qg6 {[%emt 0:00:01]} Rxe7 {[%emt 0:00:06]} 41. Qxh6+ {[%emt 0:00:
04]} Kg8 {[%emt 0:00:01]} 42. Rg3+ {[%emt 0:00:11]} Kf7 {[%emt 0:00:01]} 43.
Qh8 {[%emt 0:00:08]} Ke6 {[%emt 0:00:14]} 44. Rxf6+ {[%emt 0:00:12]} Kd7 {
[%emt 0:00:02]} 45. Rf8 {[%emt 0:00:08]} Qc1+ {[%emt 0:00:08]} 46. Kh2 {
[%emt 0:00:00]} Rd1 {[%emt 0:00:06]} 47. Rd8+ {[%emt 0:00:03]} Ke6 {[%emt 0:00:
02]} 48. Qg8+ {[%emt 0:00:06]} Rf7 {[%emt 0:00:07]} 49. Qg4+ {[%emt 0:00:03]
Kd5} 1-0

[Event "GMT Biel Chess Festival rapid"]
[Site "Biel/Bienne, Switzerland"]
[Date "2020.07.19"]
[Round "2.3"]
[White "Keymer, Vincent"]
[Black "Adams, Michael"]
[Result "1-0"]
[WhiteElo "2487"]
[BlackElo "2689"]
[PlyCount "103"]
[EventDate "2020.??.??"]
[EventType "rapid"]
[TimeControl "15+5"]
[WhiteClock "0:03:28"]
[BlackClock "0:00:27"]

1. d4 {[%emt 0:00:00]} Nf6 {[%emt 0:00:00]} 2. c4 {[%emt 0:00:00]} e6 {[%emt 0:
00:00]} 3. Nf3 {[%emt 0:00:00]} d5 {[%emt 0:00:00]} 4. Nc3 {[%emt 0:00:00]} Be7
{[%emt 0:00:00]} 5. Bf4 {[%emt 0:00:00]} O-O {[%emt 0:00:00]} 6. e3 {[%emt 0:
00:00]} Nbd7 {[%emt 0:00:00]} 7. c5 {[%emt 0:00:00]} c6 {[%emt 0:00:00]} 8. Bd3
{[%emt 0:00:00]} b6 {[%emt 0:00:00]} 9. b4 {[%emt 0:00:00]} a5 {[%emt 0:00:00]}
10. a3 {[%emt 0:00:00]} Ba6 {[%emt 0:00:00]} 11. b5 {[%emt 0:00:00]} Bb7 {
[%emt 0:00:00]} 12. cxb6 {[%emt 0:00:00]} Nxb6 {[%emt 0:00:00]} 13. bxc6 {
[%emt 0:00:00]} Bxc6 {[%emt 0:00:00]} 14. Ne5 {[%emt 0:00:00]} Bb7 {[%emt 0:00:
00]} 15. O-O {[%emt 0:00:00]} Nfd7 {[%emt 0:00:00]} 16. Nxd7 {[%emt 0:00:00]}
Qxd7 {[%emt 0:00:00]} 17. Qb1 {[%emt 0:00:00]} Nc4 {[%emt 0:00:00]} 18. Bxh7+ {
[%emt 0:00:00]} Kh8 {[%emt 0:00:00]} 19. Bd3 {[%emt 0:00:00]} Nxa3 {[%emt 0:00:
00]} 20. Qd1 {[%emt 0:00:00]} Kg8 {[%emt 0:00:00]} 21. Qh5 {[%emt 0:00:00]} f5
{[%emt 0:00:00]} 22. g4 {[%emt 0:00:00]} Qe8 {[%emt 0:00:00]} 23. Qxe8 {
[%emt 0:00:00]} Raxe8 {[%emt 0:00:00]} 24. gxf5 {[%emt 0:00:34]} exf5 {[%emt 0:
00:00]} 25. Na4 {[%emt 0:00:18]} Bb4 {[%emt 0:00:00]} 26. Rfc1 {[%emt 0:00:18]}
Nc4 {[%emt 0:00:00]} 27. Nc5 {[%emt 0:00:20]} Bc6 {[%emt 0:00:00]} 28. Na6 {
[%emt 0:00:14]} Ra8 {[%emt 0:00:00]} 29. Nxb4 {[%emt 0:00:20]} axb4 {[%emt 0:
00:00]} 30. Rab1 {[%emt 0:00:00]} Ra3 {[%emt 0:00:00]} 31. Bxc4 {[%emt 0:00:13]
} dxc4 {[%emt 0:00:00]} 32. Rxb4 {[%emt 0:00:02]} Bd5 {[%emt 0:00:00]} 33. Rb5
{[%emt 0:00:02]} Be4 {[%emt 0:00:00]} 34. Bd6 {[%emt 0:00:11]} Rfa8 {[%emt 0:
00:00]} 35. Bxa3 {[%emt 0:00:03]} Rxa3 {[%emt 0:00:00]} 36. Rc5 {[%emt 0:00:02]
} Bd3 {[%emt 0:00:00]} 37. Kg2 {[%emt 0:00:05]} Kf7 {[%emt 0:00:00]} 38. h4 {
[%emt 0:00:02]} Ra6 {[%emt 0:00:01]} 39. Rc7+ {[%emt 0:00:05]} Kg6 {[%emt 0:00:
11]} 40. Kg3 {[%emt 0:00:03]} Kh6 {[%emt 0:00:02]} 41. Kf4 {[%emt 0:00:10]} Ra2
{[%emt 0:00:02]} 42. Kg3 {[%emt 0:00:11]} Ra6 {[%emt 0:00:01]} 43. R1xc4 {
[%emt 0:00:13]} Bxc4 {[%emt 0:00:02]} 44. Rxc4 {[%emt 0:00:01]} Ra1 {[%emt 0:
00:11]} 45. d5 {[%emt 0:00:07]} Rg1+ {[%emt 0:00:03]} 46. Kf3 {[%emt 0:00:02]}
Kg6 {[%emt 0:00:04]} 47. Rd4 {[%emt 0:00:04]} Kf7 {[%emt 0:00:13]} 48. d6 {
[%emt 0:00:06]} Ke8 {[%emt 0:00:01]} 49. Kf4 {[%emt 0:00:15]} g6 {[%emt 0:00:
03]} 50. d7+ {[%emt 0:00:04]} Kd8 {[%emt 0:00:01]} 51. Ke5 {[%emt 0:00:00]} Rg2
{[%emt 0:00:07]} 52. Ke6 {[%emt 0:00:03]} 1-0

[Event "GMT Biel Chess Festival rapid"]
[Site "Biel/Bienne, Switzerland"]
[Date "2020.07.19"]
[Round "2.4"]
[White "Harikrishna, Pentala"]
[Black "Naiditsch, Arkadij"]
[Result "1-0"]
[WhiteElo "2690"]
[BlackElo "2584"]
[PlyCount "77"]
[EventDate "2020.??.??"]
[EventType "rapid"]
[TimeControl "15+5"]
[WhiteClock "0:00:12"]
[BlackClock "0:00:14"]

1. e4 {[%emt 0:00:00]} e5 {[%emt 0:00:00]} 2. Nf3 {[%emt 0:00:00]} Nc6 {
[%emt 0:00:00]} 3. Bc4 {[%emt 0:00:00]} Nf6 {[%emt 0:00:00]} 4. d3 {[%emt 0:00:
00]} Bc5 {[%emt 0:00:00]} 5. O-O {[%emt 0:00:00]} d6 {[%emt 0:00:00]} 6. c3 {
[%emt 0:00:00]} h6 {[%emt 0:00:00]} 7. Re1 {[%emt 0:00:00]} O-O {[%emt 0:00:00]
} 8. h3 {[%emt 0:00:00]} a5 {[%emt 0:00:00]} 9. a4 {[%emt 0:00:00]} Be6 {
[%emt 0:00:00]} 10. Nbd2 {[%emt 0:00:00]} Bxc4 {[%emt 0:00:00]} 11. Nxc4 {
[%emt 0:00:00]} Re8 {[%emt 0:00:00]} 12. Be3 {[%emt 0:00:00]} Bxe3 {[%emt 0:00:
00]} 13. Nxe3 {[%emt 0:00:00]} Qd7 {[%emt 0:00:00]} 14. Qb3 {[%emt 0:00:00]} b6
{[%emt 0:00:00]} 15. Qb5 {[%emt 0:00:00]} Rad8 {[%emt 0:00:00]} 16. Nc4 {
[%emt 0:00:00]} Na7 {[%emt 0:00:00]} 17. Qxd7 {[%emt 0:00:00]} Rxd7 {[%emt 0:
00:00]} 18. b4 {[%emt 0:00:00]} axb4 {[%emt 0:00:00]} 19. cxb4 {[%emt 0:00:00]}
b5 {[%emt 0:00:00]} 20. axb5 {[%emt 0:00:00]} Nxb5 {[%emt 0:00:00]} 21. Na5 {
[%emt 0:00:00]} c5 {[%emt 0:00:00]} 22. bxc5 {[%emt 0:00:00]} dxc5 {[%emt 0:00:
00]} 23. Rac1 {[%emt 0:00:00]} Nd4 {[%emt 0:00:00]} 24. Nxd4 {[%emt 0:00:00]}
cxd4 {[%emt 0:00:53]} 25. Nc4 {[%emt 0:00:00]} Rde7 {[%emt 0:01:12]} 26. Ra1 {
[%emt 0:00:12]} Nd7 {[%emt 0:00:02]} 27. Ra5 {[%emt 0:00:36]} g6 {[%emt 0:00:
10]} 28. Rb1 {[%emt 0:00:07]} Kf8 {[%emt 0:00:10]} 29. Rb7 {[%emt 0:00:23]} h5
{[%emt 0:00:06]} 30. Kf1 {[%emt 0:00:10]} Rd8 {[%emt 0:00:01]} 31. Raa7 {
[%emt 0:00:47]} Ke8 {[%emt 0:00:01]} 32. Ke2 {[%emt 0:00:08]} Re6 {[%emt 0:00:
01]} 33. Rc7 {[%emt 0:00:11]} Ke7 {[%emt 0:00:05]} 34. Na5 {[%emt 0:00:15]} Kd6
{[%emt 0:00:18]} 35. h4 {[%emt 0:00:08]} Ree8 {[%emt 0:00:05]} 36. Nc4+ {
[%emt 0:00:07]} Ke6 {[%emt 0:00:02]} 37. Rc6+ {[%emt 0:00:03]} Ke7 {[%emt 0:00:
01]} 38. Nxe5 {[%emt 0:00:03]} f6 {[%emt 0:00:06]} 39. Nxd7 {[%emt 0:00:06]}
1-0

[Event "GMT Biel Chess Festival rapid"]
[Site "Biel/Bienne, Switzerland"]
[Date "2020.07.19"]
[Round "1.1"]
[White "Studer, Noël"]
[Black "Naiditsch, Arkadij"]
[Result "0-1"]
[WhiteElo "2437"]
[BlackElo "2584"]
[PlyCount "70"]
[EventDate "2020.??.??"]
[EventType "rapid"]
[TimeControl "15+5"]
[WhiteClock "0:01:37"]
[BlackClock "0:00:06"]

1. d4 {[%emt 0:00:00]} Nf6 {[%emt 0:00:00]} 2. c4 {[%emt 0:00:00]} e6 {[%emt 0:
00:00]} 3. Nf3 {[%emt 0:00:00]} d5 {[%emt 0:00:00]} 4. g3 {[%emt 0:00:00]} Bb4+
{[%emt 0:00:00]} 5. Bd2 {[%emt 0:00:00]} Be7 {[%emt 0:00:00]} 6. Bg2 {[%emt 0:
00:00]} O-O {[%emt 0:00:00]} 7. O-O {[%emt 0:00:00]} c6 {[%emt 0:00:00]} 8. Qc2
{[%emt 0:00:00]} b6 {[%emt 0:00:00]} 9. Bf4 {[%emt 0:00:00]} Bb7 {[%emt 0:00:
00]} 10. Ne5 {[%emt 0:00:00]} Nfd7 {[%emt 0:00:00]} 11. Nd3 {[%emt 0:00:00]} a5
{[%emt 0:00:00]} 12. cxd5 {[%emt 0:00:00]} cxd5 {[%emt 0:00:00]} 13. Nc3 {
[%emt 0:00:00]} Nc6 {[%emt 0:00:00]} 14. Nb5 {[%emt 0:00:00]} Rc8 {[%emt 0:00:
00]} 15. Qb3 {[%emt 0:00:00]} Ba6 {[%emt 0:00:00]} 16. e3 {[%emt 0:00:00]} g5 {
[%emt 0:00:00]} 17. Bd6 {[%emt 0:00:00]} a4 {[%emt 0:00:00]} 18. Bxe7 {[%emt 0:
00:01]} axb3 {[%emt 0:00:00]} 19. Bxd8 {[%emt 0:00:02]} Bxb5 {[%emt 0:00:00]}
20. Bxg5 {[%emt 0:00:02]} Bxd3 {[%emt 0:00:00]} 21. Rfd1 {[%emt 0:00:03]} Bc2 {
[%emt 0:00:00]} 22. Rdc1 {[%emt 0:00:01]} Na5 {[%emt 0:00:00]} 23. Be7 {
[%emt 0:00:12]} Rfe8 {[%emt 0:00:00]} 24. Bb4 {[%emt 0:00:01]} Nb8 {[%emt 0:00:
00]} 25. Bf1 {[%emt 0:00:11]} Nbc6 {[%emt 0:00:00]} 26. Bc3 {[%emt 0:00:01]} e5
{[%emt 0:00:00]} 27. dxe5 {[%emt 0:01:18]} Nxe5 {[%emt 0:00:00]} 28. Bxa5 {
[%emt 0:00:01]} bxa5 {[%emt 0:00:00]} 29. axb3 {[%emt 0:00:01]} Nf3+ {[%emt 0:
00:00]} 30. Kg2 {[%emt 0:00:40]} Nd2 {[%emt 0:00:00]} 31. Bb5 {[%emt 0:00:08]}
Red8 {[%emt 0:00:00]} 32. Ba6 {[%emt 0:00:04]} Be4+ {[%emt 0:00:13]} 33. Kh3 {
[%emt 0:00:01]} Ra8 {[%emt 0:00:48]} 34. Bb7 {[%emt 0:00:09]} Ra7 {[%emt 0:00:
10]} 35. Rc7 {[%emt 0:00:08]} d4 {[%emt 0:00:22]} 0-1

[Event "GMT Biel Chess Festival rapid"]
[Site "Biel/Bienne, Switzerland"]
[Date "2020.07.19"]
[Round "1.2"]
[White "Adams, Michael"]
[Black "Harikrishna, Pentala"]
[Result "0-1"]
[WhiteElo "2689"]
[BlackElo "2690"]
[PlyCount "80"]
[EventDate "2020.??.??"]
[EventType "rapid"]
[TimeControl "15+5"]
[WhiteClock "0:00:25"]
[BlackClock "0:00:25"]

1. e4 {[%emt 0:00:00]} e5 {[%emt 0:00:00]} 2. Nf3 {[%emt 0:00:00]} Nc6 {
[%emt 0:00:00]} 3. Bb5 {[%emt 0:00:00]} a6 {[%emt 0:00:00]} 4. Ba4 {[%emt 0:00:
00]} Nf6 {[%emt 0:00:00]} 5. O-O {[%emt 0:00:00]} Be7 {[%emt 0:00:00]} 6. d3 {
[%emt 0:00:00]} b5 {[%emt 0:00:00]} 7. Bb3 {[%emt 0:00:00]} d6 {[%emt 0:00:00]}
8. a4 {[%emt 0:00:00]} Bd7 {[%emt 0:00:00]} 9. c3 {[%emt 0:00:00]} b4 {[%emt 0:
00:00]} 10. Nbd2 {[%emt 0:00:00]} O-O {[%emt 0:00:00]} 11. Nc4 {[%emt 0:00:00]}
Rb8 {[%emt 0:00:00]} 12. h3 {[%emt 0:00:00]} h6 {[%emt 0:00:00]} 13. Re1 {
[%emt 0:00:00]} Be6 {[%emt 0:00:00]} 14. a5 {[%emt 0:00:00]} bxc3 {[%emt 0:00:
00]} 15. bxc3 {[%emt 0:00:00]} Qc8 {[%emt 0:00:00]} 16. Ba2 {[%emt 0:00:00]}
Re8 {[%emt 0:00:00]} 17. Bd2 {[%emt 0:00:00]} Bf8 {[%emt 0:00:00]} 18. Ne3 {
[%emt 0:00:00]} Bxa2 {[%emt 0:00:00]} 19. Rxa2 {[%emt 0:00:00]} Qe6 {[%emt 0:
00:00]} 20. c4 {[%emt 0:00:00]} Nb4 {[%emt 0:00:00]} 21. Ra3 {[%emt 0:00:00]}
c5 {[%emt 0:00:00]} 22. Rb3 {[%emt 0:00:00]} Rb7 {[%emt 0:00:00]} 23. Bxb4 {
[%emt 0:00:00]} Reb8 {[%emt 0:00:00]} 24. Nc2 {[%emt 0:00:00]} Be7 {[%emt 0:00:
00]} 25. Qd2 {[%emt 0:00:00]} Nh5 {[%emt 0:00:00]} 26. Reb1 {[%emt 0:00:00]}
Bd8 {[%emt 0:00:00]} 27. Kh2 {[%emt 0:00:01]} Nf4 {[%emt 0:00:00]} 28. Ne3 {
[%emt 0:00:52]} cxb4 {[%emt 0:00:00]} 29. Ra1 {[%emt 0:00:01]} Qg6 {[%emt 0:00:
14]} 30. Ra4 {[%emt 0:00:23]} Kh7 {[%emt 0:00:06]} 31. Qb2 {[%emt 0:00:25]} Bg5
{[%emt 0:01:20]} 32. Nxg5+ {[%emt 0:00:18]} Qxg5 {[%emt 0:00:22]} 33. g3 {
[%emt 0:00:00]} Ne6 {[%emt 0:00:27]} 34. Raxb4 {[%emt 0:00:02]} Rxb4 {[%emt 0:
00:07]} 35. Rxb4 {[%emt 0:00:00]} Rxb4 {[%emt 0:00:06]} 36. Qxb4 {[%emt 0:00:
02]} Nc5 {[%emt 0:00:06]} 37. Qc3 {[%emt 0:00:17]} Qh5 {[%emt 0:00:08]} 38. Ng4
{[%emt 0:00:40]} f5 {[%emt 0:00:06]} 39. exf5 {[%emt 0:00:01]} Qxf5 {[%emt 0:
00:01]} 40. d4 {[%emt 0:00:08]} exd4 {[%emt 0:00:07]} 0-1

[Event "GMT Biel Chess Festival rapid"]
[Site "Biel/Bienne, Switzerland"]
[Date "2020.07.19"]
[Round "1.3"]
[White "Anton Guijarro, David"]
[Black "Keymer, Vincent"]
[Result "0-1"]
[WhiteElo "2718"]
[BlackElo "2487"]
[PlyCount "68"]
[EventDate "2020.??.??"]
[EventType "rapid"]
[TimeControl "15+5"]
[WhiteClock "0:00:23"]
[BlackClock "0:00:13"]

1. Nf3 {[%emt 0:00:00]} d5 {[%emt 0:00:00]} 2. c4 {[%emt 0:00:00]} e6 {[%emt 0:
00:00]} 3. g3 {[%emt 0:00:00]} d4 {[%emt 0:00:00]} 4. Bg2 {[%emt 0:00:00]} c5 {
[%emt 0:00:00]} 5. O-O {[%emt 0:00:00]} Nc6 {[%emt 0:00:00]} 6. e3 {[%emt 0:00:
00]} Nf6 {[%emt 0:00:00]} 7. exd4 {[%emt 0:00:00]} cxd4 {[%emt 0:00:00]} 8. d3
{[%emt 0:00:00]} h6 {[%emt 0:00:00]} 9. Na3 {[%emt 0:00:00]} Bxa3 {[%emt 0:00:
00]} 10. bxa3 {[%emt 0:00:00]} O-O {[%emt 0:00:00]} 11. Bf4 {[%emt 0:00:00]}
Qa5 {[%emt 0:00:00]} 12. Rb1 {[%emt 0:00:00]} Rd8 {[%emt 0:00:00]} 13. a4 {
[%emt 0:00:00]} a6 {[%emt 0:00:00]} 14. Qb3 {[%emt 0:00:00]} e5 {[%emt 0:00:00]
} 15. Bd2 {[%emt 0:00:00]} Qc7 {[%emt 0:00:00]} 16. Rfe1 {[%emt 0:00:00]} Nd7 {
[%emt 0:00:00]} 17. Qa3 {[%emt 0:00:00]} b6 {[%emt 0:00:00]} 18. a5 {[%emt 0:
00:00]} bxa5 {[%emt 0:00:00]} 19. Nh4 {[%emt 0:00:00]} Rb8 {[%emt 0:00:00]} 20.
Rxb8 {[%emt 0:00:00]} Ndxb8 {[%emt 0:00:00]} 21. f4 {[%emt 0:00:08]} Re8 {
[%emt 0:00:18]} 22. Qc5 {[%emt 0:00:20]} Re6 {[%emt 0:01:24]} 23. Bd5 {[%emt 0:
00:43]} Nd7 {[%emt 0:00:04]} 24. Qa3 {[%emt 0:00:04]} Re8 {[%emt 0:00:05]} 25.
Nf5 {[%emt 0:00:17]} Nb4 {[%emt 0:00:14]} 26. fxe5 {[%emt 0:00:37]} Nxe5 {
[%emt 0:00:07]} 27. Nxd4 {[%emt 0:00:11]} Nxd5 {[%emt 0:00:06]} 28. cxd5 {
[%emt 0:00:03]} Qb6 {[%emt 0:00:04]} 29. Be3 {[%emt 0:00:05]} Nf3+ {[%emt 0:00:
03]} 30. Nxf3 {[%emt 0:00:06]} Rxe3 {[%emt 0:00:02]} 31. Kg2 {[%emt 0:00:08]}
Bg4 {[%emt 0:00:08]} 32. Rf1 {[%emt 0:00:06]} Re2+ {[%emt 0:00:03]} 33. Kh1 {
[%emt 0:00:02]} Bxf3+ {[%emt 0:00:03]} 34. Rxf3 {[%emt 0:00:02]} Qb1+ {[%emt 0:
00:01]} 0-1

[Event "GMT Biel Chess Festival rapid"]
[Site "Biel/Bienne, Switzerland"]
[Date "2020.07.19"]
[Round "1.4"]
[White "Édouard, Romain"]
[Black "Wojtaszek, Radoslaw"]
[Result "0-1"]
[WhiteElo "2654"]
[BlackElo "2662"]
[PlyCount "88"]
[EventDate "2020.??.??"]
[EventType "rapid"]
[TimeControl "15+5"]
[WhiteClock "0:00:26"]
[BlackClock "0:00:10"]

1. c4 {[%emt 0:00:00]} Nf6 {[%emt 0:00:00]} 2. Nc3 {[%emt 0:00:00]} e5 {
[%emt 0:00:00]} 3. Nf3 {[%emt 0:00:00]} Nc6 {[%emt 0:00:00]} 4. d3 {[%emt 0:00:
00]} d5 {[%emt 0:00:00]} 5. cxd5 {[%emt 0:00:00]} Nxd5 {[%emt 0:00:00]} 6. e4 {
[%emt 0:00:00]} Nf6 {[%emt 0:00:00]} 7. h3 {[%emt 0:00:00]} Bc5 {[%emt 0:00:00]
} 8. Be3 {[%emt 0:00:00]} Qe7 {[%emt 0:00:00]} 9. Be2 {[%emt 0:00:00]} O-O {
[%emt 0:00:00]} 10. O-O {[%emt 0:00:00]} Rd8 {[%emt 0:00:00]} 11. Rc1 {[%emt 0:
00:00]} Nd4 {[%emt 0:00:00]} 12. Bxd4 {[%emt 0:00:00]} Bxd4 {[%emt 0:00:00]}
13. Nxd4 {[%emt 0:00:00]} Rxd4 {[%emt 0:00:00]} 14. Qd2 {[%emt 0:00:00]} c5 {
[%emt 0:00:00]} 15. f4 {[%emt 0:00:00]} b6 {[%emt 0:00:00]} 16. Qe3 {[%emt 0:
00:00]} exf4 {[%emt 0:00:00]} 17. Rxf4 {[%emt 0:00:00]} Be6 {[%emt 0:00:00]}
18. Rcf1 {[%emt 0:00:00]} Rad8 {[%emt 0:00:00]} 19. a3 {[%emt 0:00:00]} a6 {
[%emt 0:00:00]} 20. e5 {[%emt 0:01:20]} Nd5 {[%emt 0:00:00]} 21. Nxd5 {[%emt 0:
00:01]} R8xd5 {[%emt 0:00:00]} 22. Rxd4 {[%emt 0:00:21]} Rxd4 {[%emt 0:00:00]}
23. Rf4 {[%emt 0:00:20]} Qg5 {[%emt 0:00:00]} 24. Re4 {[%emt 0:00:02]} Qxe3+ {
[%emt 0:00:00]} 25. Rxe3 {[%emt 0:00:01]} Kf8 {[%emt 0:00:00]} 26. Kf2 {
[%emt 0:00:03]} Ke7 {[%emt 0:00:00]} 27. Bf3 {[%emt 0:00:15]} g6 {[%emt 0:00:
00]} 28. Bb7 {[%emt 0:00:04]} a5 {[%emt 0:00:00]} 29. Ba6 {[%emt 0:00:06]} Bd7
{[%emt 0:00:00]} 30. Bc4 {[%emt 0:00:04]} b5 {[%emt 0:00:00]} 31. Ba2 {[%emt 0:
00:01]} h5 {[%emt 0:00:00]} 32. Ke2 {[%emt 0:00:09]} Bf5 {[%emt 0:00:00]} 33.
Bb3 {[%emt 0:00:05]} a4 {[%emt 0:00:20]} 34. Ba2 {[%emt 0:00:00]} h4 {[%emt 0:
00:02]} 35. Rf3 {[%emt 0:00:11]} c4 {[%emt 0:00:35]} 36. dxc4 {[%emt 0:00:04]}
bxc4 {[%emt 0:00:01]} 37. Rc3 {[%emt 0:00:07]} Bd3+ {[%emt 0:00:11]} 38. Kf3 {
[%emt 0:00:01]} g5 {[%emt 0:00:19]} 39. Ke3 {[%emt 0:00:06]} Re4+ {[%emt 0:00:
30]} 40. Kf3 {[%emt 0:00:00]} Rf4+ {[%emt 0:00:05]} 41. Ke3 {[%emt 0:00:01]}
Bf1 {[%emt 0:00:02]} 42. Rc2 {[%emt 0:00:04]} Ke6 {[%emt 0:00:10]} 43. Rd2 {
[%emt 0:00:18]} Kxe5 {[%emt 0:00:15]} 44. Bb1 {[%emt 0:00:01]} g4 {[%emt 0:00:
59]} 0-1